[Event "*** Titled Tuesday Blitz"]
[Site "Chess.com"]
[Date "2020.03.03"]
[Round "2"]
[White "Koksik_13"]
[Black "GMsKoRPioN"]
[Result "1-0"]
[WhiteElo "2760"]
[BlackElo "2549"]
[TimeControl "180+1"]
[EndTime "13:20:20 PST"]
[Termination "Koksik_13 won on time"]

1. e4 {[%clk 0:03:00.9]} 1... d6 {[%clk 0:03:00.9]} 2. d4 {[%clk 0:03:00.2]}
2... g6 {[%clk 0:03:01.8]} 3. Nc3 {[%clk 0:03:00.3]} 3... Bg7 {[%clk 0:03:02.2]}
4. Bg5 {[%clk 0:03:00.2]} 4... a6 {[%clk 0:03:02.1]} 5. f4 {[%clk 0:03:00.1]}
5... c6 {[%clk 0:02:55.5]} 6. Nf3 {[%clk 0:03:00.1]} 6... Bg4 {[%clk 0:02:52.4]}
7. Bd3 {[%clk 0:02:58.7]} 7... Qb6 {[%clk 0:02:51.8]} 8. Ne2 {[%clk 0:02:54.4]}
8... Bxf3 {[%clk 0:02:48.1]} 9. gxf3 {[%clk 0:02:53.8]} 9... Bxd4 {[%clk
0:02:45.4]} 10. Nxd4 {[%clk 0:02:51.9]} 10... Qxd4 {[%clk 0:02:46.3]} 11. Qd2
{[%clk 0:02:45.5]} 11... Qxb2 {[%clk 0:02:38.7]} 12. O-O {[%clk 0:02:45]} 12...
Nd7 {[%clk 0:02:33.2]} 13. Kh1 {[%clk 0:02:43]} 13... Qd4 {[%clk 0:02:27.6]} 14.
Rab1 {[%clk 0:02:42]} 14... b5 {[%clk 0:02:27.2]} 15. a4 {[%clk 0:02:37.8]}
15... h6 {[%clk 0:02:26.1]} 16. Bh4 {[%clk 0:02:37]} 16... Ngf6 {[%clk 0:02:22]}
17. axb5 {[%clk 0:02:33.8]} 17... axb5 {[%clk 0:02:21.9]} 18. Bf2 {[%clk
0:02:30.9]} 18... Qa4 {[%clk 0:02:17.2]} 19. Qc3 {[%clk 0:02:28.2]} 19... Qa6
{[%clk 0:01:56.9]} 20. e5 {[%clk 0:02:10.5]} 20... Nd5 {[%clk 0:01:53.2]} 21.
Qd4 {[%clk 0:02:06.7]} 21... O-O {[%clk 0:01:47.8]} 22. exd6 {[%clk 0:01:58.6]}
22... exd6 {[%clk 0:01:48.7]} 23. f5 {[%clk 0:01:57.4]} 23... g5 {[%clk
0:01:40.9]} 24. Rg1 {[%clk 0:01:52.8]} 24... f6 {[%clk 0:00:56.6]} 25. Qh4
{[%clk 0:01:50.4]} 25... Ne5 {[%clk 0:00:34.8]} 26. Qxh6 {[%clk 0:01:44.9]}
26... Qb7 {[%clk 0:00:35.1]} 27. Bh4 {[%clk 0:01:03.5]} 27... Qh7 {[%clk
0:00:28.4]} 28. Bxg5 {[%clk 0:01:00.4]} 28... fxg5 {[%clk 0:00:21.2]} 29. Qxg5+
{[%clk 0:00:56.7]} 29... Kh8 {[%clk 0:00:20]} 30. f6 {[%clk 0:00:55]} 30...
Qxh2+ {[%clk 0:00:10.7]} 31. Kxh2 {[%clk 0:00:53.3]} 31... Nxf3+ {[%clk
0:00:11.6]} 32. Kh1 {[%clk 0:00:44.9]} 32... Nxg5 {[%clk 0:00:12.5]} 33. Rxg5
{[%clk 0:00:44.4]} 33... Rxf6 {[%clk 0:00:12.8]} 34. Rh5+ {[%clk 0:00:39]} 34...
Kg7 {[%clk 0:00:12.8]} 35. Rh7+ {[%clk 0:00:34.8]} 35... Kf8 {[%clk 0:00:06]}
36. Rh8+ {[%clk 0:00:34.6]} 36... Kf7 {[%clk 0:00:03.5]} 37. Rxa8 {[%clk
0:00:34]} 37... Rh6+ {[%clk 0:00:03.9]} 38. Kg1 {[%clk 0:00:34.1]} 38... b4
{[%clk 0:00:03.2]} 39. Rf1+ {[%clk 0:00:33.8]} 39... Ke7 {[%clk 0:00:02.5]} 40.
Re1+ {[%clk 0:00:33]} 40... Kd7 {[%clk 0:00:01.9]} 41. Ra7+ {[%clk 0:00:32.4]}
1-0

[Event "*** Titled Tuesday Blitz"]
[Site "Chess.com"]
[Date "2020.03.03"]
[Round "2"]
[White "Indianlad"]
[Black "saikrishnaReturns"]
[Result "0-1"]
[WhiteElo "2929"]
[BlackElo "2650"]
[TimeControl "180+1"]
[EndTime "13:20:21 PST"]
[Termination "saikrishnaReturns won by resignation"]

1. c4 {[%clk 0:03:00.9]} 1... e5 {[%clk 0:02:59.3]} 2. Nc3 {[%clk 0:03:00.8]}
2... Nc6 {[%clk 0:02:56.4]} 3. Nf3 {[%clk 0:03:01]} 3... Nf6 {[%clk 0:02:54.7]}
4. e4 {[%clk 0:03:01]} 4... Bb4 {[%clk 0:02:53.1]} 5. d3 {[%clk 0:03:00.7]} 5...
O-O {[%clk 0:02:50.8]} 6. a3 {[%clk 0:03:01.2]} 6... Bxc3+ {[%clk 0:02:50.3]} 7.
bxc3 {[%clk 0:03:02.1]} 7... Qe7 {[%clk 0:02:48.4]} 8. g3 {[%clk 0:03:01]} 8...
d6 {[%clk 0:02:39.3]} 9. Bg2 {[%clk 0:03:01.3]} 9... Bg4 {[%clk 0:02:39.3]} 10.
h3 {[%clk 0:02:59.9]} 10... Bxf3 {[%clk 0:02:39.2]} 11. Qxf3 {[%clk 0:03:00.8]}
11... Nd7 {[%clk 0:02:38.3]} 12. h4 {[%clk 0:03:00.3]} 12... Nc5 {[%clk
0:02:32.8]} 13. O-O {[%clk 0:02:55.8]} 13... Nb3 {[%clk 0:01:51.6]} 14. Rb1
{[%clk 0:02:55.8]} 14... Nxc1 {[%clk 0:01:51.7]} 15. Rfxc1 {[%clk 0:02:56.7]}
15... b6 {[%clk 0:01:52.1]} 16. h5 {[%clk 0:02:56.7]} 16... h6 {[%clk
0:01:51.6]} 17. Bh3 {[%clk 0:02:56.7]} 17... Nd8 {[%clk 0:01:48.2]} 18. Kh2
{[%clk 0:02:56]} 18... Ne6 {[%clk 0:01:48]} 19. Bf5 {[%clk 0:02:56.1]} 19... Qg5
{[%clk 0:01:46.3]} 20. Rg1 {[%clk 0:02:54.1]} 20... Qd2 {[%clk 0:01:42.5]} 21.
Rbd1 {[%clk 0:02:22.4]} 21... Qxc3 {[%clk 0:01:35.6]} 22. Bxe6 {[%clk
0:01:35.6]} 22... fxe6 {[%clk 0:01:36]} 23. Qe2 {[%clk 0:01:36.5]} 23... Qxa3
{[%clk 0:01:32.4]} 24. Rg2 {[%clk 0:01:36.5]} 24... Qc5 {[%clk 0:01:15]} 25.
Rdg1 {[%clk 0:01:33.1]} 25... Rf6 {[%clk 0:00:58.6]} 26. f3 {[%clk 0:01:18.6]}
26... Raf8 {[%clk 0:00:56]} 27. Rf1 {[%clk 0:01:19.3]} 27... a5 {[%clk
0:00:55.5]} 28. g4 {[%clk 0:01:19.7]} 28... Rf4 {[%clk 0:00:55.1]} 29. Rg3
{[%clk 0:01:18.3]} 29... a4 {[%clk 0:00:52.9]} 30. Rfg1 {[%clk 0:01:18.5]} 30...
a3 {[%clk 0:00:49.2]} 31. g5 {[%clk 0:01:19]} 31... Rh4+ {[%clk 0:00:49.2]} 32.
Kg2 {[%clk 0:01:19.2]} 32... Rxh5 {[%clk 0:00:47.5]} 33. gxh6 {[%clk 0:01:14.6]}
33... Rxh6 {[%clk 0:00:48.4]} 34. Qd2 {[%clk 0:00:56.5]} 34... Rh7 {[%clk
0:00:44.9]} 35. Qg5 {[%clk 0:00:48.3]} 35... a2 {[%clk 0:00:42.2]} 36. Qc1
{[%clk 0:00:40.1]} 36... Ra8 {[%clk 0:00:40]} 37. Qa1 {[%clk 0:00:38.7]} 37...
Qe3 {[%clk 0:00:37.4]} 38. Rf1 {[%clk 0:00:35.1]} 38... Qxd3 {[%clk 0:00:32]}
39. c5 {[%clk 0:00:32.2]} 39... dxc5 {[%clk 0:00:25.5]} 40. f4 {[%clk
0:00:32.4]} 40... Qxe4+ {[%clk 0:00:25.1]} 41. Rgf3 {[%clk 0:00:32.8]} 41...
exf4 {[%clk 0:00:21.8]} 42. Rf2 {[%clk 0:00:33.1]} 42... Qb1 {[%clk 0:00:20.6]}
43. Rf1 {[%clk 0:00:25.6]} 43... Qxa1 {[%clk 0:00:20.8]} 44. Rxa1 {[%clk
0:00:26.5]} 44... g5 {[%clk 0:00:20.2]} 45. Rf2 {[%clk 0:00:21.6]} 45... e5
{[%clk 0:00:20.6]} 46. Re2 {[%clk 0:00:21.8]} 46... Re7 {[%clk 0:00:20.1]} 47.
Kf3 {[%clk 0:00:22.3]} 47... Kf7 {[%clk 0:00:20.5]} 48. Kg4 {[%clk 0:00:21.8]}
48... Kf6 {[%clk 0:00:20.7]} 49. Rh2 {[%clk 0:00:20.3]} 49... e4 {[%clk
0:00:21]} 50. Rh6+ {[%clk 0:00:18.2]} 50... Ke5 {[%clk 0:00:21.4]} 51. Rg6
{[%clk 0:00:18.5]} 51... e3 {[%clk 0:00:20.3]} 52. Kf3 {[%clk 0:00:18.6]} 52...
Kd4 {[%clk 0:00:18.9]} 53. Rxg5 {[%clk 0:00:19.1]} 53... e2 {[%clk 0:00:19.1]}
54. Rgg1 {[%clk 0:00:19.4]} 54... e1=Q {[%clk 0:00:19]} 0-1

[Event "*** Titled Tuesday Blitz"]
[Site "Chess.com"]
[Date "2020.03.03"]
[Round "2"]
[White "dopolian"]
[Black "Sibelephant"]
[Result "0-1"]
[WhiteElo "2370"]
[BlackElo "3023"]
[TimeControl "180+1"]
[EndTime "13:20:21 PST"]
[Termination "Sibelephant won on time"]

1. e4 {[%clk 0:03:00.9]} 1... e5 {[%clk 0:02:49.8]} 2. Nf3 {[%clk 0:03:01]} 2...
Nc6 {[%clk 0:02:49.9]} 3. Bb5 {[%clk 0:03:01]} 3... g6 {[%clk 0:02:50.1]} 4. d4
{[%clk 0:02:56.9]} 4... exd4 {[%clk 0:02:49.9]} 5. Bg5 {[%clk 0:02:56.9]} 5...
Be7 {[%clk 0:02:50.1]} 6. h4 {[%clk 0:02:56.2]} 6... Nf6 {[%clk 0:02:40.4]} 7.
O-O {[%clk 0:02:40.7]} 7... O-O {[%clk 0:02:34]} 8. e5 {[%clk 0:02:34.3]} 8...
Ng4 {[%clk 0:02:32.1]} 9. Bxc6 {[%clk 0:02:19.4]} 9... dxc6 {[%clk 0:02:31.1]}
10. Bxe7 {[%clk 0:02:18.9]} 10... Qxe7 {[%clk 0:02:30.8]} 11. Qxd4 {[%clk
0:02:18.4]} 11... c5 {[%clk 0:02:20.7]} 12. Qf4 {[%clk 0:02:16.2]} 12... f6
{[%clk 0:02:20.4]} 13. exf6 {[%clk 0:02:10.7]} 13... Rxf6 {[%clk 0:02:20.2]} 14.
Qg3 {[%clk 0:02:01.1]} 14... Qd6 {[%clk 0:02:03.4]} 15. Qxd6 {[%clk 0:01:53.2]}
15... Rxd6 {[%clk 0:02:02.9]} 16. Nc3 {[%clk 0:01:49.9]} 16... Bf5 {[%clk
0:02:02.8]} 17. Rfe1 {[%clk 0:01:42.5]} 17... Rad8 {[%clk 0:01:57.9]} 18. Nb5
{[%clk 0:01:33.5]} 18... R6d7 {[%clk 0:01:50.5]} 19. Rac1 {[%clk 0:01:16.9]}
19... Kg7 {[%clk 0:01:41]} 20. Ne5 {[%clk 0:01:05]} 20... Nxe5 {[%clk
0:01:35.7]} 21. Rxe5 {[%clk 0:01:05.9]} 21... c6 {[%clk 0:01:21.4]} 22. Nc3
{[%clk 0:01:01.9]} 22... b6 {[%clk 0:01:21.5]} 23. Ne4 {[%clk 0:00:43.1]} 23...
Rd5 {[%clk 0:00:59.7]} 24. Rxd5 {[%clk 0:00:41.8]} 24... cxd5 {[%clk 0:00:59.7]}
25. Ng3 {[%clk 0:00:42]} 25... Be6 {[%clk 0:00:53.6]} 26. Re1 {[%clk 0:00:41.7]}
26... Kf7 {[%clk 0:00:52.3]} 27. Nf1 {[%clk 0:00:39]} 27... d4 {[%clk 0:00:52]}
28. Nd2 {[%clk 0:00:39]} 28... Bf5 {[%clk 0:00:50]} 29. Rc1 {[%clk 0:00:30.3]}
29... Re8 {[%clk 0:00:45.9]} 30. Kf1 {[%clk 0:00:30.6]} 30... Bd7 {[%clk
0:00:44]} 31. c4 {[%clk 0:00:21.4]} 31... Bf5 {[%clk 0:00:40.9]} 32. Nf3 {[%clk
0:00:07]} 32... Bd3+ {[%clk 0:00:39.7]} 33. Kg1 {[%clk 0:00:07.5]} 33... Re2
{[%clk 0:00:38.8]} 34. Re1 {[%clk 0:00:07.3]} 34... Rxe1+ {[%clk 0:00:37.2]} 35.
Nxe1 {[%clk 0:00:07.4]} 35... Bxc4 {[%clk 0:00:37.6]} 36. b3 {[%clk 0:00:08.3]}
36... Bb5 {[%clk 0:00:28.1]} 37. Nf3 {[%clk 0:00:06.7]} 37... Ke6 {[%clk
0:00:26.2]} 38. Nd2 {[%clk 0:00:05.4]} 38... Kd5 {[%clk 0:00:22.6]} 39. f3
{[%clk 0:00:05.9]} 39... Bd3 {[%clk 0:00:22.7]} 40. Kf2 {[%clk 0:00:06.3]} 40...
b5 {[%clk 0:00:23.1]} 41. g4 {[%clk 0:00:02.8]} 41... c4 {[%clk 0:00:23.2]} 42.
f4 {[%clk 0:00:03]} 42... c3 {[%clk 0:00:22.7]} 43. Ke1 {[%clk 0:00:01.4]} 43...
c2 {[%clk 0:00:22.3]} 0-1

[Event "*** Titled Tuesday Blitz"]
[Site "Chess.com"]
[Date "2020.03.03"]
[Round "2"]
[White "pouya21"]
[Black "nocnypako"]
[Result "1-0"]
[WhiteElo "2794"]
[BlackElo "2567"]
[TimeControl "180+1"]
[EndTime "13:20:29 PST"]
[Termination "pouya21 won on time"]

1. e4 {[%clk 0:03:00.9]} 1... e6 {[%clk 0:02:57.4]} 2. d4 {[%clk 0:03:01]} 2...
d5 {[%clk 0:02:56.9]} 3. e5 {[%clk 0:03:01.6]} 3... c5 {[%clk 0:02:56]} 4. c3
{[%clk 0:03:02.2]} 4... Qb6 {[%clk 0:02:56.2]} 5. Nf3 {[%clk 0:03:02.5]} 5...
Nc6 {[%clk 0:02:56]} 6. a3 {[%clk 0:03:01.8]} 6... c4 {[%clk 0:02:54.3]} 7. Nbd2
{[%clk 0:03:01.2]} 7... Bd7 {[%clk 0:02:53.9]} 8. Be2 {[%clk 0:02:57.8]} 8...
Na5 {[%clk 0:02:54.3]} 9. O-O {[%clk 0:02:58.1]} 9... Ne7 {[%clk 0:02:54.5]} 10.
Rb1 {[%clk 0:02:56.2]} 10... O-O-O {[%clk 0:02:54.6]} 11. Ne1 {[%clk 0:02:54.6]}
11... Kb8 {[%clk 0:02:51.2]} 12. Bg4 {[%clk 0:02:55]} 12... f5 {[%clk
0:02:49.5]} 13. exf6 {[%clk 0:02:53.6]} 13... gxf6 {[%clk 0:02:50.4]} 14. Ndf3
{[%clk 0:02:52]} 14... Ng6 {[%clk 0:02:43.4]} 15. Be3 {[%clk 0:02:47.1]} 15...
Bd6 {[%clk 0:02:40]} 16. Bh3 {[%clk 0:02:41.3]} 16... Rhg8 {[%clk 0:02:35.3]}
17. Bh6 {[%clk 0:02:35.7]} 17... Nf4 {[%clk 0:02:31.6]} 18. Bxf4 {[%clk
0:02:32.4]} 18... Bxf4 {[%clk 0:02:31.7]} 19. g3 {[%clk 0:02:32.7]} 19... e5
{[%clk 0:02:22.8]} 20. Bxd7 {[%clk 0:02:31.7]} 20... Rxd7 {[%clk 0:02:23.4]} 21.
Ng2 {[%clk 0:02:32.3]} 21... Qe6 {[%clk 0:01:49.5]} 22. Kh1 {[%clk 0:02:16.4]}
22... Qh3 {[%clk 0:01:32.4]} 23. Ng1 {[%clk 0:02:13.5]} 23... Qh6 {[%clk
0:01:11.5]} 24. Qf3 {[%clk 0:02:03.2]} 24... Rdg7 {[%clk 0:01:04.2]} 25. Ne2
{[%clk 0:01:49.1]} 25... Bd2 {[%clk 0:00:40.1]} 26. dxe5 {[%clk 0:01:45.5]}
26... fxe5 {[%clk 0:00:36.9]} 27. Qxd5 {[%clk 0:01:45.4]} 27... Nc6 {[%clk
0:00:36.5]} 28. Rbd1 {[%clk 0:01:45.4]} 28... Bg5 {[%clk 0:00:36.1]} 29. Qxc4
{[%clk 0:01:45.2]} 29... Bd8 {[%clk 0:00:27.9]} 30. Ne3 {[%clk 0:01:35]} 30...
Qh5 {[%clk 0:00:25]} 31. Ng1 {[%clk 0:01:29.5]} 31... Rg6 {[%clk 0:00:16.9]} 32.
Qe4 {[%clk 0:01:26.3]} 32... Rh6 {[%clk 0:00:15.4]} 33. Qg2 {[%clk 0:01:26.8]}
33... e4 {[%clk 0:00:14.3]} 34. Rd5 {[%clk 0:01:25.5]} 34... Qe8 {[%clk
0:00:14.4]} 35. Rfd1 {[%clk 0:01:23]} 35... Bb6 {[%clk 0:00:14.4]} 36. Nf5
{[%clk 0:01:20.2]} 36... Rf6 {[%clk 0:00:14.4]} 37. c4 {[%clk 0:01:13.5]} 37...
Qe6 {[%clk 0:00:14.1]} 38. c5 {[%clk 0:01:09.6]} 38... Rxf5 {[%clk 0:00:12.6]}
39. Rxf5 {[%clk 0:01:09.7]} 39... Qxf5 {[%clk 0:00:13.5]} 40. cxb6 {[%clk
0:01:10.4]} 40... axb6 {[%clk 0:00:14.4]} 41. Ne2 {[%clk 0:01:10.5]} 41... Ne5
{[%clk 0:00:10.7]} 42. Nd4 {[%clk 0:01:10.3]} 42... Qg4 {[%clk 0:00:09.9]} 43.
Rf1 {[%clk 0:01:08.8]} 43... Nf3 {[%clk 0:00:09.8]} 44. Nxf3 {[%clk 0:01:02.2]}
44... exf3 {[%clk 0:00:10.7]} 45. Qg1 {[%clk 0:01:02.8]} 45... Qd4 {[%clk
0:00:06.8]} 46. Rd1 {[%clk 0:01:01.6]} 46... Qxb2 {[%clk 0:00:06.1]} 47. Qe1
{[%clk 0:01:01.7]} 47... Qxa3 {[%clk 0:00:05.5]} 48. Qe5+ {[%clk 0:01:00.5]}
48... Kc8 {[%clk 0:00:04]} 49. Qe6+ {[%clk 0:01:00.5]} 49... Kc7 {[%clk
0:00:03.2]} 50. Qxg8 {[%clk 0:01:00.5]} 1-0

[Event "*** Titled Tuesday Blitz"]
[Site "Chess.com"]
[Date "2020.03.03"]
[Round "2"]
[White "SCIM"]
[Black "Irishchessman16"]
[Result "1-0"]
[WhiteElo "2474"]
[BlackElo "2201"]
[TimeControl "180+1"]
[EndTime "13:20:30 PST"]
[Termination "SCIM won on time"]

1. d4 {[%clk 0:02:36.9]} 1... Nf6 {[%clk 0:03:00]} 2. c4 {[%clk 0:02:36.9]} 2...
e6 {[%clk 0:03:00]} 3. g3 {[%clk 0:02:37.1]} 3... d5 {[%clk 0:02:59.4]} 4. Nf3
{[%clk 0:02:37.1]} 4... dxc4 {[%clk 0:02:58.8]} 5. Bg2 {[%clk 0:02:38]} 5... a6
{[%clk 0:02:58.6]} 6. O-O {[%clk 0:02:38.3]} 6... Nc6 {[%clk 0:02:59.1]} 7. e3
{[%clk 0:02:37.4]} 7... Rb8 {[%clk 0:02:59.3]} 8. Qe2 {[%clk 0:02:37.2]} 8... b5
{[%clk 0:02:58.8]} 9. b3 {[%clk 0:02:37.6]} 9... cxb3 {[%clk 0:02:57.9]} 10.
axb3 {[%clk 0:02:38.5]} 10... Be7 {[%clk 0:02:54.7]} 11. Bd2 {[%clk 0:02:34.6]}
11... O-O {[%clk 0:02:52.1]} 12. Rc1 {[%clk 0:02:33.1]} 12... Bb7 {[%clk
0:02:49.7]} 13. Nc3 {[%clk 0:02:20.3]} 13... h6 {[%clk 0:02:33.2]} 14. h4 {[%clk
0:02:01.9]} 14... Nb4 {[%clk 0:02:26.6]} 15. Na2 {[%clk 0:01:55.6]} 15... Nxa2
{[%clk 0:02:19.8]} 16. Rxa2 {[%clk 0:01:56.5]} 16... Qd5 {[%clk 0:01:43.1]} 17.
Rxc7 {[%clk 0:01:40]} 17... Bd6 {[%clk 0:01:43.1]} 18. Rc3 {[%clk 0:01:29]}
18... Ne4 {[%clk 0:01:07.4]} 19. Rd3 {[%clk 0:01:24.2]} 19... Qf5 {[%clk
0:01:00.6]} 20. Be1 {[%clk 0:01:10.4]} 20... Rfc8 {[%clk 0:00:54.7]} 21. Rd1
{[%clk 0:01:05.3]} 21... Bd5 {[%clk 0:00:32.5]} 22. Rxa6 {[%clk 0:01:02.2]}
22... Bxb3 {[%clk 0:00:32.3]} 23. Rda1 {[%clk 0:00:59.2]} 23... Rc2 {[%clk
0:00:22.9]} 24. Qd3 {[%clk 0:00:51.2]} 24... Nxg3 {[%clk 0:00:19.9]} 25. Qxb3
{[%clk 0:00:43.4]} 25... Ne2+ {[%clk 0:00:17.1]} 26. Kf1 {[%clk 0:00:43.2]}
26... Nc3 {[%clk 0:00:11.4]} 27. Bxc3 {[%clk 0:00:33.1]} 27... Qd3+ {[%clk
0:00:11.3]} 28. Kg1 {[%clk 0:00:33.7]} 28... Rxc3 {[%clk 0:00:11.1]} 29. Qb1
{[%clk 0:00:29.9]} 29... Qxb1+ {[%clk 0:00:08.4]} 30. Rxb1 {[%clk 0:00:29.4]}
30... Be7 {[%clk 0:00:07.8]} 31. h5 {[%clk 0:00:27.9]} 31... b4 {[%clk
0:00:07.5]} 32. Ne5 {[%clk 0:00:26.5]} 32... b3 {[%clk 0:00:07.8]} 33. Nc6
{[%clk 0:00:25.9]} 33... b2 {[%clk 0:00:08.2]} 34. Nxb8 {[%clk 0:00:15.4]} 34...
Rc1+ {[%clk 0:00:07.4]} 35. Kh2 {[%clk 0:00:14.6]} 35... Rxb1 {[%clk 0:00:07.6]}
36. Ra8 {[%clk 0:00:14.2]} 36... Rh1+ {[%clk 0:00:06.6]} 37. Bxh1 {[%clk
0:00:11.8]} 37... b1=Q {[%clk 0:00:05.5]} 38. Nc6+ {[%clk 0:00:12.4]} 38... Kh7
{[%clk 0:00:05.6]} 39. Nxe7 {[%clk 0:00:12.9]} 39... Qf1 {[%clk 0:00:05.4]} 40.
Be4+ {[%clk 0:00:12.4]} 40... f5 {[%clk 0:00:04.9]} 41. Bg2 {[%clk 0:00:10.3]}
41... Qxf2 {[%clk 0:00:05]} 42. Ng6 {[%clk 0:00:10.9]} 42... Qxg2+ {[%clk
0:00:01.4]} 43. Kxg2 {[%clk 0:00:10.2]} 1-0

[Event "*** Titled Tuesday Blitz"]
[Site "Chess.com"]
[Date "2020.03.03"]
[Round "2"]
[White "MaxLeto"]
[Black "HouseOfDurin"]
[Result "1/2-1/2"]
[WhiteElo "2407"]
[BlackElo "2091"]
[TimeControl "180+1"]
[EndTime "13:20:31 PST"]
[Termination "Game drawn by repetition"]

1. g4 {[%clk 0:02:59]} 1... c5 {[%clk 0:02:59.3]} 2. g5 {[%clk 0:02:59]} 2...
Nc6 {[%clk 0:02:59.3]} 3. h4 {[%clk 0:02:59.5]} 3... d5 {[%clk 0:02:58.5]} 4. d3
{[%clk 0:02:59.1]} 4... e5 {[%clk 0:02:58.9]} 5. Nc3 {[%clk 0:02:58.3]} 5... Be6
{[%clk 0:02:57.7]} 6. Bg2 {[%clk 0:02:58.2]} 6... Be7 {[%clk 0:02:55.4]} 7. e4
{[%clk 0:02:54.5]} 7... d4 {[%clk 0:02:53.7]} 8. Nd5 {[%clk 0:02:46.5]} 8... f6
{[%clk 0:02:29.5]} 9. c4 {[%clk 0:02:12.9]} 9... dxc3 {[%clk 0:02:26.3]} 10.
bxc3 {[%clk 0:02:09.8]} 10... Qd7 {[%clk 0:01:29.9]} 11. Be3 {[%clk 0:01:55.2]}
11... O-O-O {[%clk 0:01:28.4]} 12. Ne2 {[%clk 0:01:44.6]} 12... f5 {[%clk
0:01:22.2]} 13. Qa4 {[%clk 0:01:25.8]} 13... f4 {[%clk 0:01:12.6]} 14. Bd2
{[%clk 0:01:10.6]} 14... h6 {[%clk 0:01:05.9]} 15. gxh6 {[%clk 0:00:46]} 15...
Rxh6 {[%clk 0:01:02.5]} 16. O-O-O {[%clk 0:00:32.4]} 16... Nf6 {[%clk
0:01:00.3]} 17. c4 {[%clk 0:00:30]} 17... Ng4 {[%clk 0:00:50]} 18. Be1 {[%clk
0:00:24.9]} 18... Rxh4 {[%clk 0:00:41.2]} 19. Rg1 {[%clk 0:00:21.7]} 19... Nh2
{[%clk 0:00:28.5]} 20. f3 {[%clk 0:00:18.9]} 20... g5 {[%clk 0:00:21.4]} 21.
Bxh4 {[%clk 0:00:18.3]} 21... gxh4 {[%clk 0:00:20.8]} 22. Rh1 {[%clk 0:00:18.4]}
22... h3 {[%clk 0:00:19.8]} 23. Rxh2 {[%clk 0:00:15.3]} 23... hxg2 {[%clk
0:00:20.3]} 24. Rxg2 {[%clk 0:00:16.2]} 24... Nd4 {[%clk 0:00:16.5]} 25. Nxd4
{[%clk 0:00:13.3]} 25... Qxa4 {[%clk 0:00:15.6]} 26. Nxe6 {[%clk 0:00:06.8]}
26... Qa3+ {[%clk 0:00:10.2]} 27. Kb1 {[%clk 0:00:06]} 27... Rd6 {[%clk
0:00:08.6]} 28. Nxe7+ {[%clk 0:00:03.9]} 28... Kd7 {[%clk 0:00:08.8]} 29. Nd5
{[%clk 0:00:03.2]} 29... Rxe6 {[%clk 0:00:08]} 30. Rg7+ {[%clk 0:00:03.1]} 30...
Ke8 {[%clk 0:00:06.2]} 31. Rh1 {[%clk 0:00:03.2]} 31... Qxd3+ {[%clk 0:00:05.7]}
32. Kb2 {[%clk 0:00:01.7]} 32... Qe2+ {[%clk 0:00:05.2]} 33. Kb3 {[%clk
0:00:02.2]} 33... Qxf3+ {[%clk 0:00:05.3]} 34. Kc2 {[%clk 0:00:02.7]} 34... Qxh1
{[%clk 0:00:06.2]} 35. Nc7+ {[%clk 0:00:02.3]} 35... Kd8 {[%clk 0:00:04.7]} 36.
Nxe6+ {[%clk 0:00:03.2]} 36... Ke8 {[%clk 0:00:04.9]} 37. Nc7+ {[%clk
0:00:02.8]} 37... Kf8 {[%clk 0:00:05.4]} 38. Ne6+ {[%clk 0:00:03.7]} 38... Ke8
{[%clk 0:00:05.7]} 39. Nc7+ {[%clk 0:00:04.6]} 39... Kf8 {[%clk 0:00:06]} 40.
Ne6+ {[%clk 0:00:05.5]} 40... Ke8 {[%clk 0:00:06]} 1/2-1/2

[Event "*** Titled Tuesday Blitz"]
[Site "Chess.com"]
[Date "2020.03.03"]
[Round "2"]
[White "GianmarcoVaR"]
[Black "Man-Chuk"]
[Result "0-1"]
[WhiteElo "2562"]
[BlackElo "2791"]
[TimeControl "180+1"]
[EndTime "13:20:36 PST"]
[Termination "Man-Chuk won on time"]

1. d4 {[%clk 0:03:00.9]} 1... Nf6 {[%clk 0:02:54.5]} 2. c4 {[%clk 0:03:01.1]}
2... g6 {[%clk 0:02:54.8]} 3. g3 {[%clk 0:03:00.9]} 3... c5 {[%clk 0:02:51.1]}
4. d5 {[%clk 0:03:00.9]} 4... Bg7 {[%clk 0:02:50.6]} 5. Bg2 {[%clk 0:03:00.7]}
5... e6 {[%clk 0:02:49.8]} 6. Nc3 {[%clk 0:03:00.4]} 6... exd5 {[%clk
0:02:49.4]} 7. cxd5 {[%clk 0:03:01.3]} 7... O-O {[%clk 0:02:49.4]} 8. Nf3 {[%clk
0:03:01.9]} 8... d6 {[%clk 0:02:49.6]} 9. O-O {[%clk 0:03:02.4]} 9... a6 {[%clk
0:02:47.3]} 10. a4 {[%clk 0:03:02.8]} 10... Re8 {[%clk 0:02:47.9]} 11. Bf4
{[%clk 0:03:01.8]} 11... Qc7 {[%clk 0:02:42.2]} 12. Re1 {[%clk 0:02:37.3]} 12...
Ne4 {[%clk 0:02:28.1]} 13. Nxe4 {[%clk 0:02:34.1]} 13... Rxe4 {[%clk 0:02:29]}
14. Nd2 {[%clk 0:02:34.5]} 14... Rb4 {[%clk 0:02:27.1]} 15. a5 {[%clk
0:02:34.5]} 15... Nd7 {[%clk 0:02:20.6]} 16. Ra4 {[%clk 0:02:31.3]} 16... Rxa4
{[%clk 0:02:12.8]} 17. Qxa4 {[%clk 0:02:31.8]} 17... Be5 {[%clk 0:01:58.4]} 18.
Bxe5 {[%clk 0:02:23.9]} 18... Nxe5 {[%clk 0:01:57.9]} 19. h3 {[%clk 0:02:20.7]}
19... Bd7 {[%clk 0:01:52.1]} 20. Qf4 {[%clk 0:02:20.3]} 20... f5 {[%clk
0:01:48.6]} 21. b4 {[%clk 0:02:14.4]} 21... cxb4 {[%clk 0:01:42.6]} 22. Qxb4
{[%clk 0:02:14.8]} 22... Rc8 {[%clk 0:01:42.9]} 23. f4 {[%clk 0:02:00]} 23...
Nf7 {[%clk 0:01:39.4]} 24. e4 {[%clk 0:02:00.5]} 24... Bb5 {[%clk 0:01:19.4]}
25. exf5 {[%clk 0:01:48.5]} 25... gxf5 {[%clk 0:01:19.4]} 26. Kh2 {[%clk
0:01:37.4]} 26... Qc5 {[%clk 0:01:16.3]} 27. Qb1 {[%clk 0:01:28.7]} 27... Qf2
{[%clk 0:01:14]} 28. Qxf5 {[%clk 0:01:25.7]} 28... Rc3 {[%clk 0:00:58]} 29. Ne4
{[%clk 0:00:55.1]} 29... Qxe1 {[%clk 0:00:57.4]} 30. Nxc3 {[%clk 0:00:55]} 30...
Qxc3 {[%clk 0:00:56.6]} 31. Be4 {[%clk 0:00:46.9]} 31... Qd2+ {[%clk 0:00:47.3]}
32. Kh1 {[%clk 0:00:47.3]} 32... Qe1+ {[%clk 0:00:46.4]} 33. Kh2 {[%clk
0:00:47.8]} 33... Qf2+ {[%clk 0:00:46.8]} 34. Kh1 {[%clk 0:00:48.1]} 34... Qxg3
{[%clk 0:00:34.4]} 35. Qg4+ {[%clk 0:00:48.2]} 35... Qxg4 {[%clk 0:00:33.9]} 36.
hxg4 {[%clk 0:00:49.1]} 36... Kg7 {[%clk 0:00:31.9]} 37. Kg2 {[%clk 0:00:49.3]}
37... h6 {[%clk 0:00:31.3]} 38. Kf3 {[%clk 0:00:48]} 38... Bd7 {[%clk
0:00:30.7]} 39. Bd3 {[%clk 0:00:39]} 39... Kf6 {[%clk 0:00:30.6]} 40. Be4 {[%clk
0:00:38.7]} 40... Nh8 {[%clk 0:00:31]} 41. Kg3 {[%clk 0:00:34.2]} 41... Ng6
{[%clk 0:00:30.8]} 42. Bf3 {[%clk 0:00:32]} 42... Ne7 {[%clk 0:00:29.3]} 43. Be4
{[%clk 0:00:31.1]} 43... Be8 {[%clk 0:00:29.2]} 44. Kh4 {[%clk 0:00:31.5]} 44...
Bf7 {[%clk 0:00:27.9]} 45. g5+ {[%clk 0:00:31.9]} 45... hxg5+ {[%clk 0:00:28.6]}
46. fxg5+ {[%clk 0:00:32.4]} 46... Ke5 {[%clk 0:00:28.7]} 0-1